fUST/lending_fUST_20250719
["ID","MTS","AMOUNT","RATE_DAILY","PERIOD"]
[373157647,1752887476613,-460.0,0.00020273,2]
[373157648,1752887476625,-234.576232,0.00020273,2]
[373157649,1752887476634,-460.0,0.00020273,2]
[373157650,1752887476643,-684.73,0.00020273,2]
[373157651,1752887476652,-460.0,0.00020273,2]
[373157652,1752887476662,-460.0,0.00020273,2]
[373157653,1752887476671,-460.0,0.00020273,2]
[373157654,1752887476682,-460.0,0.00020273,2]
[373157655,1752887476778,-460.0,0.00020273,2]
[373157656,1752887476795,-460.0,0.00020273,2]
[373157657,1752887476804,-460.0,0.00020273,2]
[373157658,1752887476813,-1489.34,0.00020273,2]
[373157659,1752887476824,-1088.39,0.00020273,2]
[373157660,1752887476833,-460.0,0.00020273,2]
[373157661,1752887476842,-460.0,0.00020273,2]
[373157662,1752887476851,-460.0,0.00020273,2]
[373157663,1752887476862,-460.0,0.00020273,2]
[373157664,1752887476876,-460.0,0.00020273,2]
[373157665,1752887476886,-1848.28,0.00020273,2]
[373157666,1752887476896,-482.44,0.00020273,2]
[373157667,1752887476906,-464.92,0.00020273,2]
[373157668,1752887476917,-2148.2,0.00020273,2]
[373157669,1752887476926,-463.71295958,0.00020273,2]
[373157670,1752887476938,-518.51,0.00020273,2]
[373157671,1752887476948,-545.24,0.00020273,2]
[373157672,1752887476959,-3362.66,0.00020273,2]
[373157673,1752887476970,-477.85,0.00020273,2]
[373157674,1752887476980,-460.0,0.00020273,2]
[373157675,1752887476991,-838.3,0.00020273,2]
[373157676,1752887477002,-579.24,0.00020273,2]
[373157677,1752887477014,-460.0,0.00020273,2]
[373157678,1752887477025,-169.4511721,0.00020273,2]
[373157679,1752887477037,-610.12,0.00020273,2]
[373157680,1752887477049,-515.52,0.00020273,2]
[373157681,1752887477060,-503.83,0.00020273,2]
[373157682,1752887477069,-487.24,0.00020273,2]
[373157683,1752887477078,-4489.86,0.00020273,2]
[373157684,1752887477088,-460.0,0.00020273,2]
[373157685,1752887477097,-290.266198,0.00020273,2]
[373157686,1752887477106,-622.41,0.00020273,2]
[373157687,1752887477115,-290.266198,0.00020273,2]
[373157688,1752887477127,-666.5,0.00020273,2]
[373157689,1752887477136,-2494.33,0.00020273,2]
[373157690,1752887477146,-151.0,0.00020273,2]
[373157691,1752887477156,-592.03,0.00020273,2]
[373157692,1752887477166,-781.0,0.00020273,2]
[373157693,1752887477175,-777.69,0.00020273,2]
[373157694,1752887477184,-496.74,0.00020273,2]
[373157695,1752887477194,-1924.42,0.00020273,2]
[373157696,1752887477203,-494.0,0.00020273,2]
[373157697,1752887477213,-460.0,0.00020273,2]
[373157698,1752887477223,-1019.11,0.00020273,2]
[373157699,1752887477232,-460.0,0.00020273,2]
[373157700,1752887477242,-564.63,0.00020273,2]
[373157701,1752887477251,-556.53,0.00020273,2]
[373157702,1752887477261,-541.96,0.00020273,2]
[373157703,1752887477270,-460.0,0.00020273,2]
[373157704,1752887477280,-608.84089523,0.00020273,2]
[373157705,1752887477290,-1447.51,0.00020273,2]
[373157706,1752887477299,-460.0,0.00020273,2]
[373157707,1752887477309,-183.16881764,0.00020273,2]
[373157708,1752887477318,-635.79,0.00020273,2]
[373157709,1752887477328,-1371.73,0.00020273,2]
[373157710,1752887477337,-1999.99,0.00020273,2]
[373157711,1752887477346,-460.0,0.00020273,2]
[373157712,1752887477358,-460.0,0.00020273,2]
[373157713,1752887477369,-4634.36,0.00020273,2]
[373157714,1752887477379,-460.0,0.00020273,2]
[373157715,1752887477389,-460.0,0.00020273,2]
[373157716,1752887477398,-239.90239947,0.00020273,2]
[373157717,1752887477408,-2972.84,0.00020273,2]
[373157718,1752887477418,-551.48,0.00020273,2]
[373157719,1752887477427,-800.0,0.00020282,2]
[373157720,1752887477437,-2636.49776504,0.00020314,3]
[373157721,1752887477447,-357.483414,0.00020451,2]
[373157722,1752887477457,-828.36,0.00020547,2]
[373157723,1752887477467,-460.0,0.00020547,2]
[373157724,1752887477476,-524.31,0.00020547,2]
[373157725,1752887477486,-460.0,0.00020547,2]
[373157726,1752887477497,-460.0,0.00020547,2]
[373157727,1752887477507,-460.0,0.00020547,2]
[373157728,1752887477516,-460.0,0.00020547,2]
[373157729,1752887477526,-582.41255191,0.00020547,2]
[373157730,1752887477537,-589.82108252,0.00020547,2]
[373157731,1752887477546,-460.0,0.00020547,2]
[373157732,1752887477556,-559.02,0.00020547,2]
[373157733,1752887477566,-770.38,0.00020547,2]
[373157734,1752887477576,-480.33,0.00020547,2]
[373157735,1752887477586,-151.0,0.00020547,2]
[373157736,1752887477595,-526.17,0.00020547,2]
[373157737,1752887477604,-176.845494,0.00020547,2]
[373157738,1752887477614,-460.0,0.00020547,2]
[373157739,1752887477624,-337.36795833,0.00020547,2]
[373157740,1752887477634,-460.0,0.00020547,2]
[373157741,1752887477643,-490.15,0.00020547,2]
[373157742,1752887477652,-460.0,0.00020547,2]
[373157743,1752887477662,-151.0,0.00020547,2]
[373157744,1752887477671,-460.0,0.00020547,2]
[373157745,1752887477681,-684.73,0.00020547,2]
[373157746,1752887477690,-460.0,0.00020547,2]
[373157747,1752887477699,-460.0,0.00020547,2]
[373157748,1752887477709,-460.0,0.00020547,2]
[373157749,1752887477719,-460.0,0.00020547,2]
[373157750,1752887477728,-460.0,0.00020547,2]
[373157751,1752887477738,-460.0,0.00020547,2]
[373157752,1752887477749,-1199.93098,0.00020547,2]
[373157753,1752887477759,-460.0,0.00020547,2]
[373157754,1752887477769,-1199.93098,0.00020547,2]
[373157755,1752887477782,-1489.34,0.00020547,2]
[373157756,1752887477791,-1088.39,0.00020547,2]
[373157757,1752887477801,-460.0,0.00020547,2]
[373157758,1752887477810,-460.0,0.00020547,2]
[373157759,1752887477821,-521.40262785,0.00020547,2]
[373157760,1752887477830,-460.0,0.00020547,2]
[373157761,1752887477840,-460.0,0.00020547,2]
[373157762,1752887477849,-482.44,0.00020547,2]
[373157763,1752887477860,-1848.28,0.00020547,2]
[373157764,1752887477872,-464.92,0.00020547,2]
[373157765,1752887477881,-2148.2,0.00020547,2]
[373157766,1752887477891,-518.51,0.00020547,2]
[373157767,1752887477900,-545.24,0.00020547,2]
[373157768,1752887477910,-3362.66,0.00020547,2]
[373157769,1752887477919,-477.85,0.00020547,2]
[373157770,1752887477929,-460.0,0.00020547,2]
[373157771,1752887477938,-838.3,0.00020547,2]
[373157772,1752887477949,-579.24,0.00020547,2]
[373157773,1752887477958,-460.0,0.00020547,2]
[373157774,1752887477968,-610.12,0.00020547,2]
[373157775,1752887477978,-515.52,0.00020547,2]
[373157776,1752887477989,-503.83,0.00020547,2]
[373157777,1752887477999,-487.24,0.00020547,2]
[373157778,1752887478008,-4489.86,0.00020547,2]
[373157779,1752887478018,-460.0,0.00020547,2]
[373157780,1752887478027,-622.41,0.00020547,2]
[373157781,1752887478036,-666.5,0.00020547,2]
[373157782,1752887478046,-2494.33,0.00020547,2]
[373157783,1752887478055,-781.0,0.00020547,2]
[373157784,1752887478064,-777.69,0.00020547,2]
[373157785,1752887478074,-496.74,0.00020547,2]
[373157786,1752887478083,-592.03,0.00020547,2]
[373157787,1752887478093,-1924.42,0.00020547,2]
[373157788,1752887478103,-494.0,0.00020547,2]
[373157789,1752887478112,-460.0,0.00020547,2]
[373157790,1752887478124,-1019.11,0.00020547,2]
[373157791,1752887478134,-460.0,0.00020547,2]
[373157792,1752887478143,-564.63,0.00020547,2]
[373157793,1752887478153,-556.53,0.00020547,2]
[373157794,1752887478163,-541.96,0.00020547,2]
[373157795,1752887478172,-350.91105287,0.00020547,2]
[373157796,1752887478182,-1447.51,0.00020547,2]
[373157797,1752887478191,-529.22445917,0.00020547,2]
[373157798,1752887478200,-635.79,0.00020547,2]
[373157799,1752887478210,-1371.73,0.00020547,2]
[373157800,1752887478219,-1999.99,0.00020547,2]
[373157801,1752887478230,-321.89590179,0.00020547,2]
[373157802,1752887478239,-460.0,0.00020547,2]
[373157803,1752887478249,-4634.36,0.00020547,2]
[373157804,1752887478259,-460.0,0.00020547,2]
[373157805,1752887478269,-460.0,0.00020547,2]
[373157806,1752887478280,-2972.84,0.00020547,2]
[373157807,1752887478289,-551.48,0.00020547,2]
[373157808,1752887478299,-1000.0,0.00020555,2]
[373157809,1752887478310,-2636.49776504,0.00020555,3]
[373157810,1752887478319,-560.0,0.00020567,2]
[373157811,1752887478329,-25000.0,0.00020572,2]
[373157812,1752887478338,-500.0,0.00020587,2]
[373157813,1752887478348,-500.0,0.00020638,2]
[373157814,1752887478357,-157.0,0.00020712,3]
[373157815,1752887478366,-2636.49776504,0.00020797,4]
[373157816,1752887478379,-828.36,0.00020821,2]
[373157817,1752887478388,-289.58,0.00020821,2]
[373157818,1752887478398,-524.31,0.00020821,2]
[373157819,1752887478407,-460.0,0.00020821,2]
[373157820,1752887478417,-460.0,0.00020821,2]
[373157821,1752887478427,-460.0,0.00020821,2]
[373157822,1752887478436,-460.0,0.00020821,2]
[373157823,1752887478445,-460.0,0.00020821,2]
[373157824,1752887478455,-559.02,0.00020821,2]
[373157825,1752887478464,-770.38,0.00020821,2]
[373157826,1752887478474,-480.33,0.00020821,2]
[373157827,1752887478483,-526.17,0.00020821,2]
[373157828,1752887478492,-460.0,0.00020821,2]
[373157829,1752887478502,-460.0,0.00020821,2]
[373157830,1752887478512,-490.15,0.00020821,2]
[373157831,1752887478521,-460.0,0.00020821,2]
[373157832,1752887478619,-460.0,0.00020821,2]
[373157833,1752887478630,-684.73,0.00020821,2]
[373157834,1752887478640,-460.0,0.00020821,2]
[373157835,1752887478649,-441.09735334,0.00020821,2]
[373157836,1752887478659,-460.0,0.00020821,2]
[373157837,1752887478669,-152.69812429,0.00020821,2]
[373157838,1752887478679,-460.0,0.00020821,2]
[373157839,1752887478688,-369.09403443,0.00020821,2]
[373157840,1752887478698,-460.0,0.00020821,2]
[373157841,1752887478707,-1489.34,0.00020821,2]
[373157842,1752887478717,-1088.39,0.00020821,2]
[373157843,1752887478726,-460.0,0.00020821,2]
[373157844,1752887478736,-460.0,0.00020821,2]
[373157845,1752887478745,-460.0,0.00020821,2]
[373157846,1752887478755,-482.44,0.00020821,2]
[373157847,1752887478764,-1848.28,0.00020821,2]
[373157848,1752887478773,-464.92,0.00020821,2]
[373157849,1752887478784,-2148.2,0.00020821,2]
[373157850,1752887478794,-518.51,0.00020821,2]
[373157851,1752887478803,-545.24,0.00020821,2]
[373157852,1752887478813,-3362.66,0.00020821,2]
[373157853,1752887478823,-477.85,0.00020821,2]
[373157854,1752887478833,-460.0,0.00020821,2]
[373157855,1752887478842,-838.3,0.00020821,2]
[373157856,1752887478851,-579.24,0.00020821,2]
[373157857,1752887478863,-460.0,0.00020821,2]
[373157858,1752887478873,-610.12,0.00020821,2]
[373157859,1752887478883,-515.52,0.00020821,2]
[373157860,1752887478893,-503.83,0.00020821,2]
[373157861,1752887478903,-487.24,0.00020821,2]
[373157862,1752887478913,-4489.86,0.00020821,2]
[373157863,1752887478923,-460.0,0.00020821,2]
[373157864,1752887478933,-622.41,0.00020821,2]
[373157865,1752887478943,-666.5,0.00020821,2]
[373157866,1752887478953,-2494.33,0.00020821,2]
[373157867,1752887478962,-151.0,0.00020821,2]
[373157868,1752887478972,-781.0,0.00020821,2]
[373157869,1752887478982,-777.69,0.00020821,2]
[373157870,1752887478992,-496.74,0.00020821,2]
[373157871,1752887479001,-592.03,0.00020821,2]
[373157872,1752887479011,-1924.42,0.00020821,2]
[373157873,1752887479020,-167.844656,0.00020821,2]
[373157874,1752887479030,-494.0,0.00020821,2]
[373157875,1752887479039,-460.0,0.00020821,2]
[373157876,1752887479048,-1019.11,0.00020821,2]
[373157877,1752887479058,-460.0,0.00020821,2]
[373157878,1752887479068,-564.63,0.00020821,2]
[373157879,1752887479078,-556.53,0.00020821,2]
[373157880,1752887479087,-541.96,0.00020821,2]
[373157881,1752887479097,-1447.51,0.00020821,2]
[373157882,1752887479107,-635.79,0.00020821,2]
[373157883,1752887479116,-1371.73,0.00020821,2]
[373157884,1752887479128,-1999.99,0.00020821,2]
[373157885,1752887479138,-460.0,0.00020821,2]
[373157886,1752887479148,-4634.36,0.00020821,2]
[373157887,1752887479158,-460.0,0.00020821,2]
[373157888,1752887479167,-460.0,0.00020821,2]
[373157889,1752887479177,-2972.84,0.00020821,2]
[373157890,1752887479186,-551.48,0.00020821,2]
[373157891,1752887479196,-151.0,0.00020822,2]
[373157892,1752887479205,-500.0,0.00020822,2]
[373157893,1752887479215,-151.0,0.00020822,2]
[373157894,1752887479225,-151.0,0.00020822,2]
[373157895,1752887479235,-500.0,0.00020822,2]
[373157896,1752887479244,-151.0,0.00020822,2]
[373157897,1752887479254,-151.0,0.00020822,2]
[373157898,1752887479263,-161.7831985,0.00020822,2]
[373157899,1752887479272,-151.0,0.00020822,2]
[373157900,1752887479282,-191.0,0.00020883,2]
[373157901,1752887479292,-615.265,0.00020898,2]
[373157902,1752887479301,-168.47,0.00020905,2]
[373157903,1752887479310,-5298.05405919,0.00020927,2]
[373157904,1752887479319,-429.318869,0.00020939,2]
[373157905,1752887479329,-429.318869,0.00020939,2]
[373157906,1752887479338,-3000.0,0.00021,2]
[373157907,1752887479348,-151.0,0.00021,2]
[373157908,1752887479357,-151.0,0.00021,2]
[373157909,1752887479367,-160.0,0.00021,3]
[373157910,1752887479378,-12610.43989422,0.00021,3]
[373157911,1752887479387,-476.25663856,0.00021,3]
[373157912,1752887479397,-214.4881157,0.00021,3]
[373157913,1752887479406,-7370.11294292,0.00021003,2]
[373157914,1752887479416,-3000.0,0.0002101,2]
[373157915,1752887479425,-191.0,0.00021014,2]
[373157916,1752887479434,-3000.0,0.0002102,2]
[373157917,1752887479443,-224.15,0.0002102,2]
[373157918,1752887479453,-3000.0,0.0002103,2]
[373157919,1752887479463,-2636.49776504,0.00021038,4]
[373157920,1752887479472,-3000.0,0.0002104,2]
[373157921,1752887479481,-191.0,0.00021041,2]
[373157922,1752887479491,-3000.0,0.0002105,2]
[373157923,1752887479500,-3000.0,0.0002106,2]
[373157924,1752887479510,-3000.0,0.0002107,2]
[373157925,1752887479520,-3000.0,0.0002108,2]
[373157926,1752887479529,-3000.0,0.0002109,2]
[373157927,1752887479539,-828.36,0.00021095,2]
[373157928,1752887479548,-524.31,0.00021095,2]
[373157929,1752887479557,-460.0,0.00021095,2]
[373157930,1752887479566,-460.0,0.00021095,2]
[373157931,1752887479576,-460.0,0.00021095,2]
[373157932,1752887479585,-460.0,0.00021095,2]
[373157933,1752887479595,-460.0,0.00021095,2]
[373157934,1752887479604,-559.02,0.00021095,2]
[373157935,1752887479613,-770.38,0.00021095,2]
[373157936,1752887479624,-480.33,0.00021095,2]
[373157937,1752887479633,-526.17,0.00021095,2]
[373157938,1752887479643,-460.0,0.00021095,2]
[373157939,1752887479653,-555.02,0.00021095,2]
[373157940,1752887479662,-490.15,0.00021095,2]
[373157941,1752887479672,-271.30271559,0.00021095,2]
[373157942,1752887479681,-464.49662897,0.00021095,2]
[373157943,1752887479691,-684.73,0.00021095,2]
[373157944,1752887479700,-460.0,0.00021095,2]
[373157945,1752887479710,-460.0,0.00021095,2]
[373157946,1752887479719,-460.0,0.00021095,2]
[373157947,1752887479729,-460.0,0.00021095,2]
[373157948,1752887479739,-1088.39,0.00021095,2]
[373157949,1752887479748,-1489.34,0.00021095,2]
[373157950,1752887479757,-460.0,0.00021095,2]
[373157951,1752887479766,-460.0,0.00021095,2]
[373157952,1752887479776,-460.0,0.00021095,2]
[373157953,1752887479791,-482.44,0.00021095,2]
[373157954,1752887479800,-1848.28,0.00021095,2]
[373157955,1752887479809,-2148.2,0.00021095,2]
[373157956,1752887479819,-518.51,0.00021095,2]
[373157957,1752887479829,-464.92,0.00021095,2]
[373157958,1752887479838,-545.24,0.00021095,2]
[373157959,1752887479847,-3362.66,0.00021095,2]
[373157960,1752887479857,-477.85,0.00021095,2]
[373157961,1752887479867,-169.08676554,0.00021095,2]
[373157962,1752887479878,-838.3,0.00021095,2]
[373157963,1752887479887,-579.24,0.00021095,2]
[373157964,1752887479896,-460.0,0.00021095,2]
[373157965,1752887479906,-610.12,0.00021095,2]
[373157966,1752887479915,-515.52,0.00021095,2]
[373157967,1752887479925,-503.83,0.00021095,2]
[373157968,1752887479935,-487.24,0.00021095,2]
[373157969,1752887479944,-4489.86,0.00021095,2]
[373157970,1752887479953,-460.0,0.00021095,2]
[373157971,1752887479963,-290.266198,0.00021095,2]
[373157972,1752887479973,-622.41,0.00021095,2]
[373157973,1752887479984,-290.266198,0.00021095,2]
[373157974,1752887479994,-666.5,0.00021095,2]
[373157975,1752887480003,-2494.33,0.00021095,2]
[373157976,1752887480012,-151.0,0.00021095,2]
[373157977,1752887480021,-781.0,0.00021095,2]
[373157978,1752887480031,-777.69,0.00021095,2]
[373157979,1752887480041,-496.74,0.00021095,2]
[373157980,1752887480050,-592.03,0.00021095,2]
[373157981,1752887480059,-1924.42,0.00021095,2]
[373157982,1752887480070,-494.0,0.00021095,2]
[373157983,1752887480080,-460.0,0.00021095,2]
[373157984,1752887480091,-1019.11,0.00021095,2]
[373157985,1752887480101,-460.0,0.00021095,2]
[373157986,1752887480111,-564.63,0.00021095,2]
[373157987,1752887480123,-556.53,0.00021095,2]
[373157988,1752887480133,-541.96,0.00021095,2]
[373157989,1752887480142,-1447.51,0.00021095,2]
[373157990,1752887480151,-635.79,0.00021095,2]
[373157991,1752887480160,-1371.73,0.00021095,2]
[373157992,1752887480171,-1999.99,0.00021095,2]
[373157993,1752887480182,-158.09,0.00021095,2]
[373157994,1752887480193,-4634.36,0.00021095,2]
[373157995,1752887480286,-460.0,0.00021095,2]
[373157996,1752887480297,-460.0,0.00021095,2]
[373157997,1752887480307,-2972.84,0.00021095,2]
[373157998,1752887480318,-551.48,0.00021095,2]
[373157999,1752887480330,-500.0,0.00021096,2]
[373158000,1752887480341,-500.0,0.00021096,2]
[373158001,1752887480351,-3000.0,0.000211,2]
[373158002,1752887480361,-3000.0,0.0002111,2]
[373158003,1752887480373,-660.0,0.00021115,2]
[373158004,1752887480383,-3000.0,0.0002112,2]
[373158005,1752887480394,-3000.0,0.0002113,2]
[373158006,1752887480405,-191.0,0.00021134,2]
[373158007,1752887480415,-3000.0,0.0002114,2]
[373158008,1752887480425,-3000.0,0.0002115,2]
[373158009,1752887480433,-3000.0,0.0002116,2]
[373158010,1752887480442,-191.0,0.0002116,2]
[373158011,1752887480452,-3000.0,0.0002117,2]
[373158012,1752887480462,-3000.0,0.0002118,2]
[373158013,1752887480472,-151.0,0.00021184,2]
[373158014,1752887480481,-151.0,0.00021184,2]
[373158015,1752887480492,-3000.0,0.0002119,2]
[373158016,1752887480502,-3000.0,0.000212,2]
[373158017,1752887480512,-500.0,0.000212,2]
[373158018,1752887480523,-642.0,0.000212,2]
[373158019,1752887480536,-3000.0,0.0002121,2]
[373158020,1752887480546,-3000.0,0.0002122,2]
[373158021,1752887480557,-3000.0,0.0002123,2]
[373158022,1752887480567,-3000.0,0.0002124,2]
[373158023,1752887480576,-3000.0,0.0002125,2]
[373158024,1752887480586,-3000.0,0.0002126,2]
[373158025,1752887480595,-151.0,0.0002126,2]
[373158026,1752887480605,-151.0,0.0002126,2]
[373158027,1752887480616,-3000.0,0.0002127,2]
[373158028,1752887480627,-2636.49776504,0.00021279,5]
[373158029,1752887480638,-3000.0,0.0002128,2]
[373158030,1752887480648,-3000.0,0.0002129,2]
[373158031,1752887480657,-3000.0,0.000213,2]
[373158032,1752887480667,-3000.0,0.0002131,2]
[373158033,1752887480677,-3000.0,0.0002132,2]
[373158034,1752887480687,-3000.0,0.0002133,2]
[373158035,1752887480696,-3000.0,0.0002134,2]
[373158036,1752887480705,-3000.0,0.0002135,2]
[373158037,1752887480715,-3000.000001,0.0002136,2]
[373158038,1752887480725,-828.36,0.00021369,2]
[373158039,1752887480734,-524.31,0.00021369,2]
[373158040,1752887480744,-460.0,0.00021369,2]
[373158041,1752887480754,-460.0,0.00021369,2]
[373158042,1752887480763,-460.0,0.00021369,2]
[373158043,1752887480775,-460.0,0.00021369,2]
[373158044,1752887480787,-460.0,0.00021369,2]
[373158045,1752887480797,-559.02,0.00021369,2]
[373158046,1752887480806,-770.38,0.00021369,2]
[373158047,1752887480815,-480.33,0.00021369,2]
[373158048,1752887480826,-151.0,0.00021369,2]
[373158049,1752887480835,-526.17,0.00021369,2]
[373158050,1752887480844,-460.0,0.00021369,2]
[373158051,1752887480854,-490.15,0.00021369,2]
[373158052,1752887480864,-157.645736,0.00021369,2]
[373158053,1752887480876,-684.73,0.00021369,2]
[373158054,1752887480886,-460.0,0.00021369,2]
[373158055,1752887480895,-460.0,0.00021369,2]
[373158056,1752887480905,-460.0,0.00021369,2]
[373158057,1752887480915,-1199.93098,0.00021369,2]
[373158058,1752887480924,-460.0,0.00021369,2]
[373158059,1752887480933,-1199.93098,0.00021369,2]
[373158060,1752887480943,-1088.39,0.00021369,2]
[373158061,1752887480952,-1489.34,0.00021369,2]
[373158062,1752887480961,-460.0,0.00021369,2]
[373158063,1752887480971,-460.0,0.00021369,2]
[373158064,1752887480982,-460.0,0.00021369,2]
[373158065,1752887480992,-482.44,0.00021369,2]
[373158066,1752887481003,-1848.28,0.00021369,2]
[373158067,1752887481012,-2148.2,0.00021369,2]
[373158068,1752887481022,-518.51,0.00021369,2]
[373158069,1752887481031,-464.92,0.00021369,2]
[373158070,1752887481041,-545.24,0.00021369,2]
[373158071,1752887481050,-3362.66,0.00021369,2]
[373158072,1752887481059,-477.85,0.00021369,2]
[373158073,1752887481069,-838.3,0.00021369,2]
[373158074,1752887481077,-579.24,0.00021369,2]
[373158075,1752887481087,-460.0,0.00021369,2]
[373158076,1752887481096,-610.12,0.00021369,2]
[373158077,1752887481107,-515.52,0.00021369,2]
[373158078,1752887481118,-503.83,0.00021369,2]
[373158079,1752887481132,-487.24,0.00021369,2]
[373158080,1752887481142,-4489.86,0.00021369,2]
[373158081,1752887481152,-341.93330316,0.00021369,2]
[373158082,1752887481162,-622.41,0.00021369,2]
[373158083,1752887481171,-666.5,0.00021369,2]
[373158084,1752887481182,-2494.33,0.00021369,2]
[373158085,1752887481193,-151.0,0.00021369,2]
[373158086,1752887481204,-781.0,0.00021369,2]
[373158087,1752887481217,-777.69,0.00021369,2]
[373158088,1752887481227,-496.74,0.00021369,2]
[373158089,1752887481240,-592.03,0.00021369,2]
[373158090,1752887481250,-1924.42,0.00021369,2]
[373158091,1752887481260,-494.0,0.00021369,2]
[373158092,1752887481270,-460.0,0.00021369,2]
[373158093,1752887481280,-1019.11,0.00021369,2]
[373158094,1752887481290,-460.0,0.00021369,2]
[373158095,1752887481302,-564.63,0.00021369,2]
[373158096,1752887481313,-556.53,0.00021369,2]
[373158097,1752887481323,-541.96,0.00021369,2]
[373158098,1752887481333,-1447.51,0.00021369,2]
[373158099,1752887481342,-635.79,0.00021369,2]
[373158100,1752887481352,-1371.73,0.00021369,2]
[373158101,1752887481361,-1999.99,0.00021369,2]
[373158102,1752887481370,-460.0,0.00021369,2]
[373158103,1752887481382,-4634.36,0.00021369,2]
[373158104,1752887481391,-460.0,0.00021369,2]
[373158105,1752887481401,-2972.84,0.00021369,2]
[373158106,1752887481410,-551.48,0.00021369,2]
[373158107,1752887481420,-500.0,0.0002137,2]
[373158108,1752887481432,-500.0,0.0002137,2]
[373158109,1752887481442,-198.0,0.0002137,2]
[373158110,1752887481452,-800.0,0.00021378,2]
[373158111,1752887481461,-215.0738,0.00021393,2]
[373158112,1752887481472,-500.14087498,0.000214,2]
[373158113,1752887481482,-191.0,0.00021435,2]
[373158114,1752887481492,-823.0,0.00021454,2]
[373158115,1752887481502,-5823.98589143,0.0002146,2]
[373158116,1752887481512,-191.0,0.00021505,2]
[373158117,1752887481521,-2636.49776504,0.00021521,5]
[373158118,1752887481530,-301.7542578,0.00021546,2]
[373158119,1752887481539,-975.123498,0.0002156,8]
[373158120,1752887481548,-4619.31525862,0.00021637,2]
[373158121,1752887481558,-9409.34400912,0.0002164,2]
[373158122,1752887481568,-828.36,0.00021643,2]
[373158123,1752887481578,-151.0,0.00021643,2]
[373158124,1752887481587,-524.31,0.00021643,2]
[373158125,1752887481597,-460.0,0.00021643,2]
[373158126,1752887481606,-315.12489704,0.00021643,2]
[373158127,1752887481616,-460.0,0.00021643,2]
[373158128,1752887481627,-347.98,0.00021643,2]
[373158129,1752887481637,-460.0,0.00021643,2]
[373158130,1752887481646,-559.02,0.00021643,2]
[373158131,1752887481656,-770.38,0.00021643,2]
[373158132,1752887481666,-480.33,0.00021643,2]
[373158133,1752887481675,-526.17,0.00021643,2]
[373158134,1752887481685,-460.0,0.00021643,2]
[373158135,1752887481694,-490.15,0.00021643,2]
[373158136,1752887481704,-684.73,0.00021643,2]
[373158137,1752887481713,-460.0,0.00021643,2]
[373158138,1752887481722,-207.04,0.00021643,2]
[373158139,1752887481732,-460.0,0.00021643,2]
[373158140,1752887481741,-460.0,0.00021643,2]
[373158141,1752887481750,-1088.39,0.00021643,2]
[373158142,1752887481759,-1489.34,0.00021643,2]
[373158143,1752887481769,-404.03343971,0.00021643,2]
[373158144,1752887481858,-460.0,0.00021643,2]
[373158145,1752887481867,-563.77,0.00021643,2]
[373158146,1752887481877,-482.44,0.00021643,2]